bitfinex/quotes_BTCUSD_20240819
["timestamp","ask_amount","ask_price","bid_price","bid_amount"]
[1724111541876,0.00722003,59617.0,59616.0,1.87223049]
[1724111542069,0.00722003,59617.0,59616.0,1.87323049]
[1724111542947,0.00722003,59617.0,59616.0,1.87223049]
[1724111543164,0.12463603,59617.0,59616.0,0.01997649]
[1724111543364,0.12463603,59617.0,59614.0,5.3690817]
[1724111543365,0.11742,59615.0,59614.0,5.3010817]
[1724111543688,0.35226,59615.0,59614.0,5.3010817]
[1724111544264,0.11742,59615.0,59614.0,5.3010817]
[1724111544790,0.002,59615.0,59614.0,5.9572917]
[1724111544993,0.002,59615.0,59614.0,5.9582917]
[1724111545195,0.002,59615.0,59614.0,5.9572917]
[1724111545391,0.002,59615.0,59614.0,5.9582917]
[1724111545864,0.0309368,59619.0,59618.0,0.58807]
[1724111546022,0.0309368,59619.0,59618.0,1.15544677]
[1724111546222,0.0309368,59619.0,59618.0,2.65544677]
[1724111547315,0.0309368,59619.0,59618.0,2.66544677]
[1724111547549,0.0309368,59619.0,59618.0,2.65544677]
[1724111547958,0.0319368,59619.0,59618.0,2.90327477]
[1724111548299,0.0319368,59619.0,59618.0,2.91527477]
[1724111548704,0.0319368,59619.0,59618.0,2.90327477]
[1724111549110,0.0319368,59619.0,59618.0,2.91627477]
[1724111550073,0.0309368,59619.0,59618.0,2.90327477]
[1724111550392,0.0309368,59619.0,59618.0,2.91727477]
[1724111550593,0.0309368,59619.0,59618.0,3.14110277]
[1724111550841,0.3,59622.0,59621.0,0.983956]
[1724111551063,0.3,59622.0,59621.0,1.72452077]
[1724111552411,0.3,59622.0,59621.0,1.74752077]
[1724111553259,0.3,59622.0,59621.0,1.76152077]
[1724111553856,0.3,59622.0,59621.0,1.77352077]
[1724111554263,0.3,59622.0,59621.0,3.25052077]
[1724111554409,0.3,59622.0,59621.0,3.26060927]
[1724111554810,0.3,59622.0,59621.0,3.51842527]
[1724111554999,0.12960691,59622.0,59621.0,3.75424127]
[1724111555361,0.12960691,59622.0,59621.0,3.75624127]
[1724111555687,0.12960691,59622.0,59621.0,3.75724127]
[1724111555890,0.12960691,59622.0,59621.0,3.73424127]
[1724111556518,0.00040492,59628.0,59621.0,3.73424127]
[1724111556519,0.00040492,59628.0,59627.0,1.688156]
[1724111556724,0.00040492,59628.0,59627.0,1.95950477]
[1724111556925,0.00040492,59628.0,59627.0,1.72471277]
[1724111557133,0.00040492,59628.0,59627.0,3.22471277]
[1724111557343,0.00040492,59628.0,59627.0,0.352188]
[1724111557560,0.00040492,59628.0,59627.0,0.353188]
[1724111557769,0.00040492,59628.0,59627.0,0.93512877]
[1724111557973,0.00040492,59628.0,59627.0,0.94912877]
[1724111558178,0.00040492,59628.0,59627.0,1.16992077]
[1724111558393,0.00040492,59628.0,59627.0,1.15592077]
[1724111558615,0.00040492,59628.0,59627.0,1.17692077]
[1724111559028,0.00040492,59628.0,59627.0,2.67692077]
[1724111559367,0.00040492,59628.0,59627.0,2.44212877]
[1724111559563,0.00040492,59628.0,59627.0,2.42812877]
[1724111559768,0.00040492,59628.0,59627.0,2.65588035]
[1724111559967,0.00040492,59628.0,59627.0,2.66288035]
[1724111560168,0.00040492,59628.0,59627.0,2.67188035]
[1724111560378,0.00040492,59628.0,59627.0,2.66488035]
[1724111560581,0.00040492,59628.0,59627.0,2.66588035]
[1724111561081,0.00040492,59628.0,59627.0,2.67788035]
[1724111561501,0.00040492,59628.0,59627.0,2.99167235]
[1724111561682,0.00040492,59628.0,59627.0,2.76988035]
[1724111562047,0.00040492,59628.0,59627.0,3.00467235]
[1724111562257,0.00040492,59628.0,59627.0,2.76988035]
[1724111562672,0.00040492,59628.0,59627.0,2.78388035]
[1724111562853,0.00040492,59628.0,59627.0,2.76988035]
[1724111563047,0.00040492,59628.0,59627.0,2.76612341]
[1724111563252,0.00040492,59628.0,59627.0,2.78012341]
[1724111563553,0.00040485,59638.0,59637.0,0.587882]
[1724111563749,0.00040485,59638.0,59637.0,1.65644677]
[1724111563981,0.00040485,59638.0,59637.0,1.99419977]
[1724111564150,0.03856378,59658.0,59657.0,0.910759]
[1724111564368,0.03856378,59658.0,59657.0,1.15230777]
[1724111565010,0.03856378,59658.0,59657.0,2.65230777]
[1724111565588,0.03856378,59658.0,59657.0,2.67547763]
[1724111566000,0.03856378,59658.0,59657.0,2.37060363]
[1724111566209,0.03856378,59658.0,59657.0,0.02416986]
[1724111566623,0.03856378,59658.0,59657.0,0.77296663]
[1724111566831,0.03856378,59658.0,59657.0,2.15562963]
[1724111567041,0.03856378,59658.0,59657.0,1.87618086]
[1724111567253,0.03856378,59658.0,59657.0,1.89218086]
[1724111567699,0.03856378,59658.0,59657.0,1.64150686]
[1724111567935,0.03856378,59658.0,59657.0,1.87918086]
[1724111568174,0.03856378,59658.0,59657.0,1.64650686]
[1724111568707,0.03856378,59658.0,59657.0,1.88118086]
[1724111569114,0.03856378,59658.0,59657.0,1.64350686]
[1724111569319,0.03856378,59658.0,59657.0,1.52316986]
[1724111569525,0.03856378,59658.0,59657.0,0.02816986]
[1724111569526,0.55066878,59658.0,59657.0,0.02816986]
[1724111570021,0.55066878,59658.0,59657.0,0.005]
[1724111570215,0.55066878,59658.0,59657.0,0.003]
[1724111570216,0.78533878,59658.0,59657.0,0.003]
[1724111570384,1.04300878,59658.0,59657.0,0.003]
[1724111570589,1.04300878,59658.0,59657.0,0.005]
[1724111570590,0.80833878,59658.0,59657.0,0.005]
[1724111570823,0.80833878,59658.0,59657.0,0.002]
[1724111571020,0.19866378,59658.0,59651.0,0.001]
[1724111571173,0.19866378,59658.0,59657.0,0.003]
[1724111571174,0.31599878,59658.0,59657.0,0.003]
[1724111571374,0.55066878,59658.0,59657.0,0.005]
[1724111572477,0.31599878,59658.0,59657.0,0.002]
[1724111572683,0.31599878,59658.0,59652.0,0.117346]
[1724111572684,0.117337,59657.0,59652.0,0.117346]
[1724111573095,0.117337,59657.0,59653.0,1.5]
[1724111574240,0.19866378,59658.0,59654.0,0.1413824]
[1724111574604,0.43333678,59658.0,59654.0,0.0240414]
[1724111574741,0.11734,59656.0,59654.0,0.0240414]
[1724111574944,0.11326378,59658.0,59656.0,0.001]
[1724111575154,0.11326378,59658.0,59654.0,0.0240414]
[1724111575155,0.23059978,59658.0,59654.0,0.0240414]
[1724111575361,0.11326378,59658.0,59655.0,0.001]
[1724111575559,0.11326378,59658.0,59657.0,0.118337]
[1724111575758,0.11326378,59658.0,59655.0,0.11834]
[1724111575941,0.11326378,59658.0,59656.0,0.117339]
[1724111576151,0.11326378,59658.0,59657.0,0.117337]
[1724111576152,0.10826378,59658.0,59657.0,0.117337]
[1724111576395,0.10826378,59658.0,59657.0,0.14129476]
[1724111576550,0.10826378,59658.0,59657.0,0.37696876]
[1724111576771,0.10826378,59658.0,59657.0,0.37796876]
[1724111576974,0.10826378,59658.0,59657.0,0.37596876]
[1724111577209,0.03356378,59658.0,59657.0,0.37596876]
[1724111577411,0.03356378,59658.0,59657.0,0.37696876]
[1724111577613,0.03676318,59658.0,59657.0,0.61164276]
[1724111577811,0.03676318,59658.0,59657.0,0.37596876]
[1724111578068,0.03676318,59658.0,59657.0,0.37696876]
[1724111578827,0.03676318,59658.0,59657.0,0.14129476]
[1724111579488,0.03676318,59658.0,59657.0,0.37596876]
[1724111579719,0.03676318,59658.0,59657.0,0.37696876]
[1724111579929,0.03676318,59658.0,59657.0,0.70304276]
[1724111580133,0.03676318,59658.0,59657.0,0.70704276]
[1724111580338,0.03676318,59658.0,59657.0,0.71004276]
[1724111580513,0.03676318,59658.0,59657.0,0.94471676]
[1724111581475,0.03676318,59658.0,59657.0,0.71004276]
[1724111583155,0.03676318,59658.0,59657.0,2.21004276]
[1724111583368,0.03676318,59658.0,59657.0,2.61606553]
[1724111583634,1e-08,59658.0,59657.0,2.61606553]
[1724111584350,1e-08,59658.0,59657.0,2.85073953]
[1724111584738,1e-08,59658.0,59657.0,2.92463953]
[1724111585383,1e-08,59658.0,59657.0,2.92163953]
[1724111585594,1e-08,59658.0,59657.0,2.91763953]
[1724111585794,1e-08,59658.0,59657.0,2.92463953]
[1724111586003,1e-08,59658.0,59657.0,2.92063953]
[1724111586207,1e-08,59658.0,59657.0,1.41763953]
[1724111586411,1e-08,59658.0,59657.0,1.43163953]
[1724111586637,1e-08,59658.0,59657.0,1.21096553]
[1724111586840,1e-08,59658.0,59657.0,1.19696553]
[1724111588279,1e-08,59658.0,59657.0,1.12306553]
[1724111588689,1e-08,59658.0,59657.0,0.63964276]
[1724111588888,1e-08,59658.0,59657.0,0.62564276]
[1724111589296,1e-08,59658.0,59657.0,0.63864276]
[1724111589500,1e-08,59658.0,59657.0,0.62464276]
[1724111589673,1e-08,59658.0,59657.0,0.61064276]
[1724111589877,1e-08,59658.0,59657.0,0.62364276]
[1724111590078,1e-08,59658.0,59657.0,0.63464276]
[1724111590283,1e-08,59658.0,59657.0,0.86931676]
[1724111590780,1.00000001,59658.0,59657.0,1.20436553]
[1724111592116,1.00000001,59658.0,59657.0,1.20526973]
[1724111592698,1.00000001,59658.0,59657.0,2.70526973]
[1724111593051,1.00082201,59658.0,59657.0,2.70526973]
[1724111593444,1.00082201,59658.0,59657.0,2.63366973]
[1724111595627,1.00082201,59658.0,59657.0,1.13366973]
[1724111596259,1.00082201,59658.0,59657.0,0.87022096]
[1724111596840,1.00082201,59658.0,59657.0,0.86922096]
[1724111597182,1.00082201,59658.0,59657.0,0.87022096]
[1724111600121,1.00082201,59658.0,59657.0,2.37022096]
[1724111600323,1.00082201,59658.0,59657.0,0.87022096]
[1724111600530,1.00041852,59658.0,59657.0,0.87022096]
[1724111601283,1.00041852,59658.0,59657.0,0.86922096]
[1724111601484,1.00041852,59658.0,59657.0,0.87022096]
[1724111602490,1.28525352,59658.0,59657.0,0.04786196]
[1724111602735,1.16791852,59658.0,59657.0,0.04071621]
[1724111602940,1.16791852,59658.0,59657.0,0.0239042]
[1724111603158,1.51992352,59658.0,59657.0,0.0239042]
[1724111603360,1.75459352,59658.0,59657.0,0.0239042]
[1724111603566,1.75459352,59658.0,59657.0,0.0119042]
[1724111603770,1.51992352,59658.0,59657.0,0.0009042]
[1724111604146,1.52092352,59658.0,59657.0,0.0009042]
[1724111604565,1.28525352,59658.0,59657.0,0.0009042]
[1724111605059,1.28625352,59658.0,59657.0,0.0019042]
[1724111605404,1.16991852,59658.0,59657.0,0.0029042]
[1724111605605,1.16891852,59658.0,59657.0,0.3549152]
[1724111605806,1.16891852,59658.0,59657.0,0.5885892]
[1724111605807,1.07941852,59658.0,59657.0,0.5885892]
[1724111606198,1.00341852,59658.0,59657.0,0.46112721]
[1724111606386,1.00541852,59658.0,59657.0,0.69680121]
[1724111606789,1.00541852,59658.0,59657.0,2.19680121]
[1724111606991,1.00241852,59658.0,59657.0,2.19580121]
[1724111607142,1.00441852,59658.0,59657.0,2.19580121]
[1724111607560,1.07981852,59658.0,59657.0,0.13505321]
[1724111607773,1.07981852,59658.0,59657.0,0.36972721]
[1724111607774,1.08081852,59658.0,59657.0,0.36972721]
[1724111607942,1.17191852,59658.0,59657.0,1.63505321]
[1724111608147,1.17191852,59658.0,59657.0,0.13505321]
[1724111608371,1.08081852,59658.0,59657.0,0.13505321]
[1724111608578,1.07981852,59658.0,59657.0,1.63505321]
[1724111608797,1.08081852,59658.0,59657.0,1.63505321]
[1724111609225,1.07881852,59658.0,59657.0,1.63505321]
[1724111609429,1.07881852,59658.0,59657.0,1.63805321]
[1724111609825,1.07881852,59658.0,59657.0,1.63505321]
[1724111610107,1.07981852,59658.0,59657.0,1.63505321]
[1724111610792,1.19715352,59658.0,59657.0,0.01771621]
[1724111610966,1.29555352,59658.0,59657.0,0.01771621]
[1724111611169,1.17821852,59658.0,59657.0,0.0009042]
[1724111611593,1.29555352,59658.0,59657.0,0.01773396]
[1724111611770,1.76489352,59658.0,59657.0,0.0009042]
[1724111612133,1.78789352,59658.0,59657.0,0.0009042]
[1724111612554,1.78789352,59658.0,59638.0,0.04945549]
[1724111612555,0.117365,59643.0,59638.0,0.117373]
[1724111612768,0.234724,59645.0,59634.0,0.51404632]
[1724111612769,0.1745,59637.0,59634.0,0.51404632]
[1724111612967,0.0771,59635.0,59625.0,0.234798]
[1724111613166,0.0771,59635.0,59621.0,0.330915]
[1724111613366,0.0771,59635.0,59627.0,0.11746236]
[1724111613591,0.234772,59633.0,59627.0,6.736e-05]
[1724111613821,0.11739,59630.0,59627.0,6.736e-05]
[1724111613991,0.117392,59629.0,59627.0,6.736e-05]
[1724111614189,0.352166,59631.0,59627.0,6.736e-05]
[1724111614460,0.117391,59630.0,59627.0,6.736e-05]
[1724111614734,0.117392,59629.0,59628.0,0.01456713]
[1724111615157,0.117391,59630.0,59627.0,6.736e-05]
[1724111615368,0.236777,59631.0,59628.0,0.01456773]
[1724111615762,0.234781,59630.0,59627.0,6.736e-05]
[1724111615967,0.117394,59628.0,59627.0,6.736e-05]
[1724111616173,0.520383,59628.0,59627.0,0.00106736]
[1724111616371,0.778172,59628.0,59627.0,6.736e-05]
[1724111616579,0.778172,59628.0,59627.0,0.00097156]
[1724111616938,0.779172,59628.0,59627.0,0.00097156]
[1724111617148,1.113961,59628.0,59627.0,0.00097156]
[1724111617351,1.117961,59628.0,59627.0,0.00097156]
[1724111617653,0.881172,59628.0,59627.0,0.00097156]
[1724111617905,0.882172,59628.0,59627.0,0.00097156]
[1724111618102,1.118961,59628.0,59627.0,0.00097156]
[1724111618510,1.120961,59628.0,59627.0,0.00097156]
[1724111619353,1.2568971,59628.0,59627.0,0.00097156]
[1724111619673,1.30775047,59628.0,59627.0,0.00097156]
[1724111619866,1.2578971,59628.0,59627.0,0.00097156]
[1724111620239,1.17081437,59628.0,59627.0,0.00097156]
[1724111620450,0.886172,59628.0,59627.0,0.00097156]
[1724111620648,0.1837,59628.0,59627.0,0.00097156]
[1724111620943,0.005,59628.0,59627.0,0.11836756]
[1724111621148,0.005,59628.0,59627.0,0.01560878]
[1724111621327,0.122394,59628.0,59627.0,0.01560878]
[1724111621534,0.005,59628.0,59627.0,0.01560878]
[1724111622141,0.005,59628.0,59627.0,0.36779678]
[1724111622765,0.005,59628.0,59627.0,0.13300478]
[1724111622987,0.005,59628.0,59627.0,0.36879678]
[1724111623519,0.005,59628.0,59627.0,0.36779678]
[1724111623836,0.005,59628.0,59627.0,0.36879678]
[1724111625111,0.005,59628.0,59627.0,0.36779678]
[1724111625496,0.005,59628.0,59627.0,0.36879678]
[1724111626097,0.005,59628.0,59627.0,0.36779678]
[1724111626720,0.005,59628.0,59627.0,1.86779678]
[1724111626979,0.005,59628.0,59627.0,0.01560878]
[1724111626980,0.293894,59628.0,59627.0,0.01560878]
[1724111627575,0.528683,59628.0,59627.0,0.00097156]
[1724111627744,0.786472,59628.0,59627.0,0.00097156]
[1724111627945,0.8654192,59628.0,59627.0,0.00097156]
[1724111628108,1.021261,59628.0,59627.0,0.00097156]
[1724111628309,1.121261,59628.0,59627.0,0.00097156]
[1724111628715,0.0781,59628.0,59627.0,0.00097156]
[1724111628955,0.195494,59628.0,59627.0,0.00097156]
[1724111629369,0.195494,59628.0,59627.0,0.01573578]
[1724111629768,0.430283,59628.0,59627.0,0.01573578]
[1724111629965,0.430283,59628.0,59627.0,0.00097156]
[1724111630213,0.688072,59628.0,59627.0,0.00097156]
[1724111630416,0.7667192,59628.0,59627.0,0.00097156]
[1724111630619,0.783472,59628.0,59627.0,0.00097156]
[1724111631341,0.785472,59628.0,59627.0,0.00097156]
[1724111631535,0.783472,59628.0,59627.0,0.00097156]
[1724111632705,0.218494,59628.0,59627.0,0.00097156]
[1724111632909,0.453283,59628.0,59627.0,0.00097156]
[1724111633156,0.453283,59628.0,59627.0,0.15097156]
[1724111633737,0.453283,59628.0,59627.0,0.16574009]
[1724111635137,0.688072,59628.0,59627.0,0.16574009]
[1724111635338,0.688072,59628.0,59627.0,0.15097156]
[1724111635970,0.453283,59628.0,59627.0,0.15097156]
[1724111636348,0.453283,59628.0,59627.0,0.16573805]
[1724111636974,0.453283,59628.0,59627.0,0.15097156]
[1724111637200,0.005,59628.0,59627.0,0.59885956]
[1724111637420,0.005,59628.0,59627.0,0.36306756]
[1724111637630,0.005,59628.0,59627.0,0.26043805]
[1724111637829,0.122394,59628.0,59627.0,0.16573805]
[1724111638546,0.614972,59628.0,59627.0,0.16573805]
[1724111639395,0.145394,59628.0,59627.0,0.16573805]
[1724111640269,0.380183,59628.0,59627.0,0.16573805]
[1724111640707,0.713172,59628.0,59627.0,0.16573805]
[1724111640906,0.789472,59628.0,59627.0,0.16573805]
[1724111641130,1.024261,59628.0,59627.0,0.16573805]
[1724111641554,1.024261,59628.0,59627.0,0.15097156]
[1724111641765,0.789472,59628.0,59627.0,0.15097156]
[1724111643019,0.789472,59628.0,59627.0,0.16574406]
[1724111643226,0.789472,59628.0,59627.0,0.15097156]
[1724111644231,0.1043,59628.0,59627.0,0.15097156]
[1724111644385,0.005,59628.0,59627.0,0.50415956]
[1724111644586,0.005,59628.0,59627.0,0.73795156]
[1724111644763,0.005,59628.0,59627.0,0.75272406]
[1724111645168,0.005,59628.0,59627.0,0.75372406]
[1724111645983,0.005,59628.0,59627.0,1.08521606]
[1724111647099,0.000822,59655.0,59654.0,0.234686]
[1724111647230,0.000822,59655.0,59654.0,0.93116377]
[1724111647412,0.000822,59655.0,59654.0,2.51155687]
[1724111647612,0.000822,59655.0,59654.0,2.68290564]
[1724111648066,0.000822,59655.0,59654.0,2.91759164]
[1724111648271,0.002822,59655.0,59654.0,2.91859164]
[1724111648682,0.002822,59655.0,59654.0,2.91759164]
[1724111648683,0.000822,59655.0,59654.0,2.91759164]
[1724111648874,0.000822,59655.0,59654.0,2.91659164]
[1724111649081,0.000822,59655.0,59654.0,2.92359164]
[1724111649484,0.000822,59655.0,59654.0,2.92459164]
[1724111649690,0.000822,59655.0,59654.0,3.50067764]
[1724111649907,0.000822,59655.0,59654.0,3.49667764]
[1724111650105,0.000822,59655.0,59654.0,3.58149154]
[1724111650309,1.00045852,59658.0,59657.0,0.123337]
[1724111650538,1.00045852,59658.0,59657.0,2.02895577]
[1724111650741,0.82315852,59658.0,59657.0,2.06258577]
[1724111650962,0.0002,59699.0,59694.0,0.117264]
[1724111651138,0.0002,59699.0,59694.0,2.90189427]
[1724111651343,0.0002,59699.0,59694.0,3.13742327]
[1724111651608,0.0002,59699.0,59694.0,3.23162327]
[1724111651761,0.0002,59699.0,59694.0,3.23262327]
[1724111651992,0.0068495,59695.0,59694.0,3.34175327]
[1724111652192,0.0002,59699.0,59697.0,1.056326]
[1724111652397,0.216536,59700.0,59699.0,0.213454]
[1724111652597,0.216536,59700.0,59699.0,1.18732977]
[1724111652818,0.216536,59700.0,59699.0,1.20788683]
[1724111653038,0.216536,59700.0,59699.0,1.44239583]
[1724111653248,0.216536,59700.0,59699.0,1.51429583]
[1724111653446,0.216536,59700.0,59699.0,1.49669583]
[1724111653447,0.144636,59700.0,59699.0,1.49669583]
[1724111653647,0.144636,59700.0,59699.0,1.26218683]
[1724111654012,0.144636,59700.0,59699.0,1.27618683]
[1724111654535,0.144636,59700.0,59699.0,0.65086883]
[1724111654709,0.144636,59700.0,59699.0,0.90037783]
[1724111654913,0.144636,59700.0,59699.0,2.39548857]
[1724111655112,0.144636,59700.0,59699.0,2.38148857]
[1724111655349,0.144636,59700.0,59699.0,0.48051501]
[1724111655511,0.144636,59700.0,59699.0,0.38631501]
[1724111655713,0.144636,59700.0,59699.0,0.3814308]
[1724111655920,0.144636,59700.0,59699.0,0.3954308]
[1724111656123,0.144636,59700.0,59699.0,0.1459218]
[1724111656323,0.144636,59700.0,59699.0,0.3944308]
[1724111656532,0.144636,59700.0,59685.0,0.001]
[1724111656533,0.3306996,59700.0,59685.0,0.001]
[1724111656696,0.05606996,59699.0,59671.0,0.0554]
[1724111656926,0.023,59699.0,59681.0,0.001]
[1724111657152,0.023,59699.0,59672.0,0.17134877]
[1724111657153,0.117269,59692.0,59682.0,0.235575]
[1724111657365,0.234517,59697.0,59683.0,0.01718338]
[1724111657575,0.023,59696.0,59683.0,0.01718338]
[1724111657779,0.023,59696.0,59678.0,0.001]
[1724111658007,0.023,59696.0,59681.0,0.11729]
[1724111658008,0.002,59696.0,59681.0,0.11729]
[1724111658216,0.002,59696.0,59679.0,0.01724841]
[1724111658217,0.234529,59694.0,59680.0,0.11729]
[1724111658426,0.234537,59692.0,59683.0,0.001]
[1724111658642,0.117275,59689.0,59683.0,0.001]
[1724111658846,0.002,59699.0,59685.0,0.002]
[1724111658847,0.234518,59697.0,59685.0,0.002]
[1724111659064,0.234518,59697.0,59683.0,0.001]
[1724111659065,0.023,59696.0,59684.0,0.0182218]
[1724111659287,0.23651,59699.0,59689.0,0.117274]
[1724111659288,0.011,59694.0,59689.0,0.117274]
[1724111659490,0.011,59694.0,59687.0,0.117277]
[1724111659700,0.117266,59693.0,59690.0,0.01716324]
[1724111659908,0.01,59689.0,59687.0,0.117277]
[1724111660515,0.117266,59693.0,59687.0,0.117277]
[1724111660954,0.131266,59693.0,59687.0,0.117277]
[1724111661159,0.131266,59693.0,59689.0,0.001]
[1724111661365,0.117266,59693.0,59689.0,0.001]
[1724111661777,0.131266,59693.0,59689.0,0.001]
[1724111662183,0.014,59693.0,59689.0,0.001]
[1724111662382,0.014,59693.0,59690.0,0.01715704]
[1724111662606,0.131266,59693.0,59685.0,0.234562]
[1724111662917,0.117269,59692.0,59691.0,0.01714728]
[1724111663117,0.117275,59689.0,59681.0,0.23458]
[1724111663327,0.234555,59688.0,59674.0,0.117303]
[1724111663534,0.351859,59683.0,59682.0,0.01723515]
[1724111663680,0.351859,59683.0,59670.0,0.74866832]
[1724111663681,0.117292,59680.0,59674.0,0.117303]
[1724111663887,0.117291,59681.0,59670.0,0.234623]
[1724111664084,0.117291,59681.0,59675.0,0.01731233]
[1724111664286,0.117291,59681.0,59675.0,0.117301]
[1724111664518,0.23456,59686.0,59676.0,0.25190256]
[1724111664705,0.234555,59688.0,59676.0,0.25190256]
[1724111664706,0.140283,59685.0,59676.0,0.25190256]
[1724111664908,0.117286,59683.0,59677.0,0.234595]
[1724111665323,0.117286,59683.0,59678.0,0.13458897]
[1724111665535,0.234548,59690.0,59678.0,0.01729397]
[1724111665739,0.234543,59691.0,59682.0,0.117287]
[1724111665936,0.234543,59691.0,59678.0,0.01729397]
[1724111665937,0.02259678,59690.0,59678.0,0.01829397]
[1724111666213,0.02259678,59690.0,59680.0,0.234582]
[1724111666214,0.117275,59689.0,59680.0,0.234582]
[1724111666466,0.02259678,59690.0,59680.0,0.234582]
[1724111666467,0.004,59683.0,59682.0,0.117288]
[1724111666616,0.02259678,59690.0,59682.0,0.117288]
[1724111666617,0.117279,59687.0,59682.0,0.117288]
[1724111666845,0.117279,59687.0,59682.0,0.13454369]
[1724111667311,0.234549,59689.0,59682.0,0.01725569]
[1724111667525,0.117286,59683.0,59682.0,0.01725569]
[1724111667730,0.117284,59684.0,59682.0,0.01725569]
[1724111667865,0.117286,59683.0,59676.0,0.234597]
[1724111668090,0.1025,59682.0,59675.0,0.117301]
[1724111668284,0.219789,59682.0,59676.0,0.117299]
[1724111668560,0.1025,59682.0,59676.0,0.234597]
[1724111668729,0.219788,59682.0,59677.0,0.117296]
[1724111668931,0.219788,59682.0,59676.0,0.234597]
[1724111668932,0.219788,59682.0,59678.0,0.117295]
[1724111669363,0.219788,59682.0,59676.0,0.234597]
[1724111669364,0.219788,59682.0,59676.0,0.351895]
[1724111669484,0.1025,59682.0,59674.0,0.234607]
[1724111669675,0.1025,59682.0,59677.0,0.01736596]
[1724111669676,0.337076,59682.0,59677.0,0.01736596]
[1724111669886,0.0797,59677.0,59672.0,0.117307]
[1724111670086,0.117298,59677.0,59672.0,0.117307]
[1724111670422,0.023,59681.0,59669.0,0.07717111]
[1724111670632,0.234593,59678.0,59669.0,0.07717111]
[1724111670810,0.117304,59674.0,59669.0,0.07717111]
[1724111671016,0.023,59677.0,59669.0,0.07717111]
[1724111671209,0.023,59679.0,59672.0,0.117306]
[1724111671416,0.117304,59674.0,59670.0,0.117311]
[1724111671757,0.117303,59675.0,59670.0,0.117311]
[1724111671898,0.140304,59674.0,59670.0,0.117311]
[1724111672303,0.146304,59674.0,59670.0,0.117311]
[1724111672501,0.1006,59673.0,59669.0,0.07717111]
[1724111672705,0.117311,59670.0,59669.0,0.07717111]
[1724111672907,0.140311,59670.0,59669.0,0.07717111]
[1724111673129,0.1024,59670.0,59669.0,0.07717111]
[1724111673327,0.1024,59670.0,59669.0,0.19448411]
[1724111673529,0.0794,59670.0,59669.0,0.19448411]
[1724111673791,0.0794,59670.0,59669.0,0.42911111]
[1724111674007,0.0804,59670.0,59669.0,0.19448411]
[1724111674144,0.0794,59670.0,59669.0,0.07717111]
[1724111674347,0.0794,59670.0,59669.0,0.42911111]
[1724111674554,0.1006,59673.0,59672.0,0.351922]
[1724111674760,0.1236,59673.0,59672.0,0.117307]
[1724111674960,0.1236,59673.0,59669.0,0.07717111]
[1724111675166,0.1236,59673.0,59672.0,0.117307]
[1724111675980,0.1236,59673.0,59669.0,0.07717111]
[1724111676213,0.1306,59673.0,59671.0,0.117309]
[1724111676611,0.1376,59673.0,59672.0,0.117307]
[1724111676824,0.1376,59673.0,59672.0,0.351922]
[1724111677014,0.1376,59673.0,59672.0,0.117307]
[1724111677225,0.1376,59673.0,59671.0,0.117309]
[1724111677378,0.1306,59673.0,59671.0,0.117309]
[1724111677820,0.1306,59673.0,59672.0,0.117307]
[1724111677998,0.1236,59673.0,59672.0,0.117307]
[1724111678237,0.1306,59673.0,59672.0,0.117307]
[1724111678922,0.1306,59673.0,59669.0,0.07807421]
[1724111679142,0.014,59673.0,59672.0,0.587537]
[1724111679352,0.014,59673.0,59672.0,0.925852]
[1724111679782,0.014,59673.0,59672.0,2.425852]
[1724111679932,0.202279,59687.0,59683.0,0.117284]
[1724111680499,0.085,59687.0,59681.0,0.001]
[1724111680747,0.085,59687.0,59686.0,0.35184]
[1724111681080,0.0856,59692.0,59688.0,0.001]
[1724111681259,0.0856,59692.0,59690.0,0.117271]
[1724111681468,0.0856,59692.0,59691.0,0.11727]
[1724111681614,1e-08,59692.0,59691.0,0.11727]
[1724111682037,1e-08,59692.0,59691.0,0.10327]
[1724111682878,1e-08,59692.0,59689.0,0.234548]
[1724111682879,0.01400001,59692.0,59689.0,0.117272]
[1724111683112,0.01400001,59692.0,59687.0,0.234555]
[1724111683113,0.14526801,59692.0,59688.0,0.117275]
[1724111683341,0.257542,59691.0,59681.0,0.001]
[1724111683536,0.257542,59691.0,59686.0,0.117279]
[1724111683537,0.117273,59690.0,59686.0,0.117279]
[1724111683718,0.023,59691.0,59685.0,0.234564]
[1724111683935,0.117274,59690.0,59684.0,0.234567]
[1724111684136,0.023,59689.0,59684.0,0.234567]
[1724111684473,0.023,59689.0,59687.0,0.117278]
[1724111684684,0.01300001,59692.0,59688.0,0.117276]
[1724111684685,0.0856,59690.0,59688.0,0.117276]
[1724111684892,0.023,59689.0,59688.0,0.117276]
[1724111685097,1e-08,59692.0,59689.0,0.117273]
[1724111685353,0.013,59690.0,59689.0,0.117273]
[1724111685553,0.013,59690.0,59684.0,0.235567]
[1724111685791,1e-08,59692.0,59684.0,0.001]
[1724111685956,0.014,59690.0,59689.0,0.117274]
[1724111686144,1e-08,59692.0,59688.0,0.001]
[1724111686355,1e-08,59692.0,59689.0,0.117274]
[1724111686555,1e-08,59692.0,59688.0,0.001]
[1724111686556,0.03700001,59692.0,59688.0,0.001]
[1724111686811,0.234542,59691.0,59688.0,0.001]
[1724111687017,0.351823,59689.0,59688.0,0.001]
[1724111687242,0.609372,59689.0,59688.0,0.001]
[1724111687450,0.117279,59687.0,59680.0,0.234584]
[1724111687626,0.117278,59687.0,59682.0,0.117288]
[1724111687825,0.117278,59687.0,59684.0,0.001]
[1724111688239,0.117278,59687.0,59682.0,0.117288]
[1724111688450,0.257549,59689.0,59675.0,0.001]
[1724111688451,0.106,59683.0,59675.0,0.001]
[1724111688575,0.117293,59680.0,59673.0,0.23461]
[1724111688774,0.19729,59681.0,59677.0,0.117297]
[1724111688998,0.19729,59681.0,59673.0,0.23461]
[1724111688999,0.023,59679.0,59676.0,0.117299]
[1724111689206,0.023,59679.0,59675.0,0.001]
[1724111689403,0.023,59680.0,59677.0,0.118297]
[1724111689678,0.023,59680.0,59678.0,0.117296]
[1724111689879,0.023,59680.0,59677.0,0.117297]
[1724111690127,0.140292,59680.0,59677.0,0.117297]
[1724111690364,0.140292,59680.0,59675.0,0.235602]
[1724111690478,0.140292,59680.0,59677.0,0.117297]